bitfinex/quotes_SOLUSD_20240624
["timestamp","ask_amount","ask_price","bid_price","bid_amount"]
[1719202031841,7.9459,125.85,125.84,14.1781834]
[1719202032055,7.9459,125.85,125.8,0.04]
[1719202032056,1.75029692,125.86,125.8,0.04]
[1719202032243,7.9484,125.81,125.8,0.04]
[1719202032439,1.75029692,125.86,125.8,0.04]
[1719202032641,7.9484,125.81,125.8,0.04]
[1719202033236,7.9484,125.81,125.8,0.0001]
[1719202033436,8.1184,125.81,125.8,0.0001]
[1719202033640,7.9484,125.81,125.8,0.0001]
[1719202034746,9.69869692,125.81,125.8,0.0001]
[1719202035147,7.9484,125.81,125.8,0.0001]
[1719202036262,1.75029692,125.84,125.8,0.0001]
[1719202036462,1.83551448,125.86,125.8,0.0001]
[1719202036463,7.9479,125.82,125.8,0.0001]
[1719202036663,13.28450848,125.86,125.8,0.0001]
[1719202036866,1.83551448,125.86,125.8,0.0001]
[1719202037068,7.9484,125.81,125.8,0.0001]
[1719202037761,1.75029692,125.84,125.8,0.0001]
[1719202037953,7.9476,125.83,125.8,0.0001]
[1719202038148,7.9481,125.82,125.8,0.0001]
[1719202038355,7.9473,125.83,125.8,0.0001]
[1719202038543,15.4131984,125.86,125.8,0.0001]
[1719202038741,7.946,125.85,125.8,52.9492]
[1719202038944,9.78101448,125.86,125.8,52.9492]
[1719202039160,1.75029692,125.85,125.8,45.0001]
[1719202039369,3.5858114,125.86,125.8,45.0001]
[1719202039553,7.9459,125.85,125.8,52.9491]
[1719202039768,7.9465,125.85,125.8,45.0001]
[1719202039963,9.69579692,125.86,125.8,52.949]
[1719202040161,9.69569692,125.86,125.8,52.949]
[1719202040363,7.9449,125.87,125.81,7.9484]
[1719202040559,7.9449,125.87,125.82,52.9477]
[1719202040759,7.9449,125.87,125.83,45.0]
[1719202041682,7.9449,125.87,125.82,45.0]
[1719202041863,7.9449,125.87,125.82,52.9477]
[1719202043177,1.75029692,125.88,125.82,45.0]
[1719202043379,7.945,125.87,125.82,52.9478]
[1719202043675,7.945,125.87,125.82,45.0]
[1719202044648,7.945,125.87,125.82,52.9474]
[1719202045176,7.9447,125.87,125.82,52.9476]
[1719202045759,11.827387,125.9,125.82,45.0]
[1719202046081,1.75029692,125.89,125.82,45.0]
[1719202046283,7.9443,125.88,125.83,7.947]
[1719202046467,7.9447,125.87,125.84,45.0]
[1719202046662,1.75029692,125.9,125.82,45.0]
[1719202046981,1.75029692,125.94,125.82,45.0]
[1719202047178,7.9429,125.9,125.85,7.9457]
[1719202047360,7.9436,125.89,125.86,45.0]
[1719202047561,7.9428,125.9,125.86,45.0]
[1719202048153,7.9434,125.89,125.86,45.0]
[1719202048561,1.75029692,125.93,125.86,45.0]
[1719202049060,7.9419,125.92,125.87,7.9447]
[1719202049263,1.83551448,125.94,125.88,45.0]
[1719202049568,7.941,125.93,125.88,52.9437]
[1719202049961,1.75029692,125.98,125.88,45.0]
[1719202050275,7.9419,125.92,125.88,45.0]
[1719202050479,7.9411,125.93,125.88,52.944]
[1719202050689,7.9411,125.93,125.88,45.0]
[1719202051482,7.9411,125.93,125.88,52.9439]
[1719202051880,7.942,125.92,125.88,45.0]
[1719202052578,1.75029692,125.91,125.84,6.504]
[1719202052783,0.17,125.93,125.84,6.504]
[1719202052963,7.9442,125.88,125.84,6.504]
[1719202053160,1.75029692,125.93,125.84,6.504]
[1719202053360,0.17,125.92,125.84,6.3506]
[1719202053566,7.9438,125.89,125.84,14.2968]
[1719202053761,1.92029692,125.92,125.84,6.3506]
[1719202054268,7.9438,125.89,125.84,14.297]
[1719202054673,7.943,125.9,125.85,7.9458]
[1719202054965,1.92029692,125.93,125.84,6.3506]
[1719202055374,1.92029692,125.93,125.85,45.0]
[1719202055570,1.92029692,125.93,125.84,6.3506]
[1719202055773,7.943,125.9,125.85,7.9458]
[1719202055991,1.92029692,125.93,125.84,6.3506]
[1719202056284,1.92029692,125.93,125.85,7.9459]
[1719202056483,1.92029692,125.93,125.83,15.7602]
[1719202056484,7.945,125.87,125.83,15.7602]
[1719202056686,1.75029692,125.91,125.84,7.9461]
[1719202056989,7.9452,125.87,125.83,15.7602]
[1719202057181,7.9443,125.88,125.83,23.7073]
[1719202057600,7.9455,125.86,125.83,15.7602]
[1719202057780,7.9437,125.89,125.84,52.9465]
[1719202058288,1.83551448,125.92,125.84,45.0]
[1719202058475,8.37669692,125.95,125.85,7.9457]
[1719202058799,7.9435,125.89,125.86,45.0]
[1719202058979,7.9445,125.88,125.85,45.0]
[1719202059179,7.9445,125.88,125.83,23.7071]
[1719202059180,1.75029692,125.93,125.83,15.7602]
[1719202059496,7.943,125.9,125.86,7.9452]
[1719202059674,1.75029692,125.93,125.83,15.7602]
[1719202059880,7.9415,125.92,125.87,7.9443]
[1719202060192,6.6264,125.95,125.85,7.9456]
[1719202060193,7.9428,125.9,125.85,7.9456]
[1719202060394,7.9424,125.91,125.86,7.9451]
[1719202060595,30.8375,125.96,125.87,45.0]
[1719202060794,7.9416,125.92,125.86,45.0]
[1719202061095,1.75029692,125.95,125.86,45.0]
[1719202061304,7.9415,125.92,125.87,7.9444]
[1719202061481,7.9415,125.92,125.88,45.0]
[1719202061811,7.9412,125.93,125.88,52.9439]
[1719202061978,7.9411,125.93,125.88,58.9584]
[1719202062299,7.9398,125.95,125.89,15.8286]
[1719202062495,7.9398,125.95,125.9,52.9427]
[1719202062797,9.69139692,125.97,125.91,7.9419]
[1719202062798,7.9393,125.96,125.91,7.9419]
[1719202062981,7.9396,125.95,125.92,45.0]
[1719202063179,1.75029692,125.99,125.91,7.9421]
[1719202063492,7.9391,125.96,125.92,45.0]
[1719202064405,1.75029692,125.99,125.92,45.0]
[1719202064606,7.94,125.95,125.91,45.0]
[1719202064900,7.94,125.95,125.91,52.9421]
[1719202065292,1.75029692,125.99,125.91,45.0]
[1719202065692,7.9397,125.95,125.9,52.9424]
[1719202066003,7.9393,125.96,125.91,7.9418]
[1719202066299,7.9393,125.96,125.92,45.0]
[1719202066300,7.939,125.96,125.92,45.0]
[1719202066494,7.9383,125.98,125.92,45.0]
[1719202066692,7.9373,125.99,125.94,7.9397]
[1719202066995,7.9373,125.99,125.95,51.0145]
[1719202067389,7.9373,125.99,125.95,67.2477]
[1719202067805,7.9367,126.0,125.95,75.1872]
[1719202068103,7.9367,126.0,125.95,75.1873]
[1719202068704,7.9361,126.01,125.96,7.9389]
[1719202068906,7.9361,126.01,125.97,45.0]
[1719202069201,7.9366,126.0,125.97,45.0]
[1719202069500,7.9361,126.01,125.97,7.9382]
[1719202069685,7.9353,126.02,125.98,45.0]
[1719202069887,7.9349,126.03,125.98,52.9376]
[1719202070095,7.9353,126.02,125.98,45.0]
[1719202070680,7.9353,126.02,125.98,52.9376]
[1719202070882,7.9349,126.03,125.98,52.9376]
[1719202071186,7.9366,126.07,125.98,45.0]
[1719202071374,1.75029692,126.07,125.97,65.1858]
[1719202071578,7.934,126.04,125.97,65.1858]
[1719202071779,7.9336,126.05,126.0,7.9364]
[1719202071975,7.9336,126.05,126.01,45.0]
[1719202072205,7.9339,126.04,126.01,45.0]
[1719202072405,1.75029692,126.07,125.95,42.0967]
[1719202072579,7.935,126.03,125.98,7.9375]
[1719202072785,7.935,126.03,125.99,52.9371]
[1719202073195,1.75029692,126.07,125.99,52.9371]
[1719202073389,7.9347,126.03,125.99,45.0]
[1719202073903,7.9347,126.03,125.99,52.937]
[1719202074088,7.9341,126.04,125.99,52.937]
[1719202074402,7.9341,126.04,126.0,7.9364]
[1719202074610,7.9341,126.04,126.01,45.0]
[1719202075106,7.9328,126.06,126.02,22.5844]
[1719202075312,7.9328,126.06,126.03,45.0]
[1719202075684,1.75029692,126.09,126.03,45.0]
[1719202075903,7.932,126.08,126.03,52.9344]
[1719202076117,7.9323,126.07,126.03,45.0]
[1719202077218,1.75029692,126.11,126.02,22.5844]
[1719202077379,7.9342,126.04,125.99,7.9368]
[1719202077587,7.9342,126.04,125.98,22.5844]
[1719202077994,1.75029692,126.11,126.0,7.9361]
[1719202078206,7.9344,126.04,126.0,7.9364]
[1719202078681,7.9328,126.06,125.98,22.5844]
[1719202078879,7.9335,126.05,125.98,42.4277]
[1719202079083,7.9339,126.04,126.0,7.9364]
[1719202079298,7.934,126.04,126.0,7.9364]
[1719202079495,3.56755048,126.11,125.98,22.5844]
[1719202079683,7.9341,126.04,125.99,7.9368]
[1719202079893,7.9341,126.04,125.98,22.5844]
[1719202080203,7.9336,126.05,126.0,7.9364]
[1719202080408,7.9329,126.06,126.01,7.9357]
[1719202080616,7.9334,126.05,126.0,7.9361]
[1719202080910,1.75029692,126.09,125.98,30.5216]
[1719202081215,7.9389,125.97,125.95,15.226]
[1719202081396,1.75029692,126.04,125.95,15.226]
[1719202081581,24.37029692,126.04,125.92,7.9414]
[1719202081787,7.9383,125.98,125.91,15.226]
[1719202082002,24.37029692,126.04,125.92,7.941]
[1719202082208,7.9378,125.98,125.93,7.9406]
[1719202083119,7.9374,125.99,125.94,7.9402]
[1719202083315,1.75029692,126.02,125.92,19.8534]
[1719202083582,7.936,126.01,125.96,7.9386]
[1719202083811,9.68589692,126.02,125.97,7.9381]
[1719202084018,9.68589692,126.02,125.94,19.8505]
[1719202084019,7.9362,126.01,125.96,7.939]
[1719202084192,3.56755048,126.03,125.92,167.3836]
[1719202084395,3.56755048,126.03,125.97,45.0]
[1719202084396,7.9358,126.01,125.97,45.0]
[1719202084808,1.75029692,126.0,125.91,15.226]
[1719202085115,1.75029692,126.04,125.91,15.226]
[1719202085418,7.9377,125.98,125.91,15.226]
[1719202085917,7.9384,125.97,125.92,7.9412]
[1719202086293,7.9384,125.97,125.93,45.0]
[1719202086510,7.9384,125.97,125.93,52.9408]
[1719202086721,7.9378,125.98,125.93,52.9408]
[1719202087013,7.9391,125.96,125.93,45.0]
[1719202087333,7.9381,125.98,125.93,52.9408]
[1719202087624,7.9384,125.97,125.93,52.9408]
[1719202087999,1.75029692,126.01,125.93,45.0]
[1719202088304,1.75029692,126.01,125.94,15.4634]
[1719202088610,9.68649692,126.01,125.95,45.0]
[1719202088812,7.9362,126.01,125.95,45.0]
[1719202089329,7.9362,126.01,125.96,7.9387]
[1719202089525,7.9362,126.01,125.97,45.0]
[1719202089698,7.9362,126.01,125.97,7.9383]
[1719202089894,10.25779692,126.05,125.98,45.0]
[1719202090202,7.9349,126.03,125.98,52.9376]
[1719202090402,7.9341,126.04,125.99,7.9367]
[1719202090620,7.9346,126.03,126.0,45.0]
[1719202091007,7.9346,126.03,125.99,45.0]
[1719202091214,31.96489692,126.08,125.99,45.0]
[1719202091399,31.96489692,126.08,125.97,7.938]
[1719202091607,31.96489692,126.08,125.99,7.937]
[1719202091802,9.68489692,126.08,125.96,6.4074]
[1719202092003,1.81725356,126.07,125.97,7.9378]
[1719202092232,2.09029692,126.06,125.97,7.9378]
[1719202092424,2.09029692,126.06,125.98,7.9376]
[1719202092628,1.75029692,126.06,125.96,6.4074]
[1719202093108,1.75029692,126.06,125.96,14.3461]
[1719202093522,1.75029692,126.06,125.96,6.4074]
[1719202093735,1.75029692,126.06,125.98,7.9372]
[1719202093905,1.75029692,126.06,125.99,45.0]
[1719202094228,7.9349,126.03,125.99,45.0]
[1719202094727,7.9349,126.03,125.99,52.937]
[1719202095043,7.934,126.04,125.99,52.937]
[1719202095231,7.9338,126.05,126.0,7.9363]
[1719202095411,9.68439692,126.04,125.99,52.9368]
[1719202095734,3.73755048,126.07,125.99,52.9368]
[1719202095912,0.34,126.06,125.99,45.0]
[1719202096114,7.9358,126.02,125.96,6.4074]
[1719202096319,7.9358,126.02,125.97,45.0]
[1719202096722,1.59029692,126.06,125.97,45.0]
[1719202096926,7.9347,126.03,125.98,7.9373]
[1719202097713,1.59029692,126.06,125.97,45.0]
[1719202098013,7.9346,126.03,125.99,52.9365]
[1719202098208,7.9346,126.03,125.97,45.0]
[1719202098517,1.59029692,126.06,126.0,45.0]
[1719202098924,7.935,126.03,126.0,45.0]
[1719202099129,7.9342,126.04,125.99,52.937]
[1719202099439,7.9342,126.04,125.99,52.9368]
[1719202100213,7.9342,126.04,125.99,45.0]
[1719202100533,7.9342,126.04,125.99,52.9366]
[1719202102930,3.40755048,126.07,125.99,45.0]
[1719202103121,7.9331,126.06,126.01,7.9354]
[1719202103320,7.9331,126.06,126.02,45.0]
[1719202104245,1.59029692,126.08,126.02,45.0]
[1719202104424,1.59029692,126.11,126.02,51.4664]
[1719202104624,7.9307,126.1,126.05,7.9329]
[1719202104838,7.9307,126.1,126.06,45.0]
[1719202106133,7.9309,126.09,126.06,45.0]
[1719202106431,7.9304,126.1,126.06,45.0]
[1719202107217,7.9309,126.09,126.06,45.0]
[1719202109518,7.9305,126.1,126.06,45.0]
[1719202109729,7.9305,126.1,126.06,52.9326]
[1719202109929,7.9289,126.12,126.07,15.3774]
[1719202110132,7.9289,126.12,126.08,45.0]
[1719202110330,7.9286,126.13,126.08,52.9312]
[1719202110834,1.59029692,126.16,126.09,6.0908]
[1719202111044,15.0496,126.18,126.09,6.0908]
[1719202111045,7.9283,126.13,126.1,45.0]
[1719202111942,7.9279,126.14,126.1,45.0]
[1719202113637,7.9279,126.14,126.1,52.93]
[1719202113943,7.9274,126.15,126.1,52.9299]
[1719202114137,7.9277,126.14,126.1,52.9299]
[1719202114440,7.9277,126.14,126.1,45.0]
[1719202115244,7.9277,126.14,126.1,52.9301]
[1719202115628,7.9266,126.16,126.1,45.0]
[1719202115834,7.9273,126.15,126.1,52.9298]
[1719202116241,7.9278,126.14,126.1,52.9298]
[1719202116443,6.19292804,126.19,126.1,52.9301]
[1719202116444,7.9273,126.15,126.1,52.9301]
[1719202116849,7.9267,126.16,126.11,7.9295]
[1719202117053,7.9269,126.16,126.12,45.0]
[1719202117253,20.64029692,126.18,126.12,45.0]
[1719202117432,1.59029692,126.17,126.12,45.0]
[1719202117747,7.9307,126.1,126.07,15.3774]
[1719202117932,7.9311,126.09,126.07,15.3774]
[1719202118332,7.9304,126.1,126.07,15.3774]
[1719202118732,7.9297,126.11,126.07,15.3774]
[1719202118928,1.59029692,126.1,126.01,21.7531]
[1719202119250,20.64029692,126.1,126.01,21.7531]
[1719202119447,1.59029692,126.09,126.02,7.9347]
[1719202119651,1.59029692,126.09,126.01,29.6885]
[1719202119951,1.59029692,126.09,126.02,7.9351]
[1719202120137,1.59029692,126.09,126.01,21.7531]
[1719202120345,19.05,126.08,126.01,21.7531]
[1719202120547,1.59029692,126.07,126.01,21.7531]
[1719202121095,1.59029692,126.1,126.01,29.6884]
[1719202121348,1.59029692,126.1,126.02,7.935]
[1719202121737,1.59029692,126.1,126.03,45.0]
[1719202121930,1.59029692,126.1,126.02,45.0]
[1719202122254,1.59029692,126.1,126.01,15.5441]
[1719202122464,0.34,126.09,126.01,15.5441]
[1719202122632,9.52019692,126.11,126.06,7.9327]
[1719202122831,1.59029692,126.14,126.03,19.835]
[1719202123236,1.59029692,126.14,126.02,6.2874]
[1719202123452,7.9305,126.1,126.05,7.9332]
[1719202123752,7.9304,126.1,126.06,45.0]
[1719202123958,7.9296,126.11,126.06,45.0]
[1719202124446,7.9296,126.11,126.06,52.9324]
[1719202124643,7.9286,126.13,126.08,7.9313]
[1719202124850,7.9286,126.13,126.09,45.0]
[1719202125241,1.59029692,126.15,126.07,23.392]
[1719202125441,1.59029692,126.15,126.08,45.0]
[1719202125959,1.59029692,126.15,126.08,52.9314]
[1719202126136,7.9284,126.13,126.08,52.9312]
[1719202126343,7.9291,126.12,126.08,45.0]
[1719202127058,7.9296,126.11,126.08,45.0]
[1719202127268,7.9307,126.1,126.07,15.4602]
[1719202127563,7.9307,126.1,126.03,19.8362]
[1719202127564,7.9307,126.1,126.05,7.933]
[1719202127957,7.9297,126.11,126.06,7.9326]
[1719202128478,1.59029692,126.15,126.05,7.9333]
[1719202128769,0.34,126.14,126.06,7.9325]
[1719202128966,7.9291,126.12,126.07,7.932]
[1719202129265,7.9291,126.12,126.04,34.9577]
[1719202129471,7.9296,126.11,126.07,7.9317]
[1719202129770,7.9296,126.11,126.06,7.9324]
[1719202129965,7.9296,126.11,126.07,45.0]
[1719202130340,7.9292,126.12,126.07,52.932]
[1719202130542,1.59029692,126.15,126.04,34.9577]
[1719202130543,7.9309,126.09,126.05,7.9332]
[1719202130767,7.9306,126.1,126.06,45.0]
[1719202131080,1.59029692,126.15,126.06,45.0]
[1719202131245,7.9292,126.12,126.07,7.9319]
[1719202131447,0.34,126.14,126.06,7.9325]
[1719202131448,7.9296,126.11,126.06,7.9325]
[1719202131647,7.9296,126.11,126.07,45.0]
[1719202132264,7.9302,126.1,126.06,7.9325]
[1719202132480,7.9302,126.1,126.05,7.9332]
[1719202132792,7.9302,126.1,126.06,45.0]
[1719202132961,7.931,126.09,126.04,15.124]
[1719202133160,0.34,126.14,126.01,59.5165]
[1719202133161,7.9338,126.05,126.01,16.4049]
[1719202133360,1.59029692,126.11,126.01,16.4049]
[1719202133666,1.59029692,126.11,126.01,24.3406]
[1719202133667,7.9336,126.05,126.01,24.3406]
[1719202133874,7.933,126.06,126.01,24.3406]
[1719202134559,7.933,126.06,126.02,7.9352]
[1719202134960,1.93029692,126.1,125.99,7.937]
[1719202135170,1.93029692,126.1,125.96,35.4402]
[1719202135463,1.93029692,126.1,125.98,7.9373]
[1719202135464,7.9347,126.03,125.98,7.9373]
[1719202135680,7.9347,126.03,125.99,7.937]
[1719202135880,7.9369,126.0,125.96,23.5318]
[1719202136135,1.59029692,126.04,125.96,15.5928]
[1719202136279,1.59029692,126.04,125.96,23.5317]
[1719202136480,7.9361,126.01,125.96,23.5317]
[1719202137586,7.9355,126.02,125.97,7.9382]
[1719202137795,1.59029692,126.03,125.96,15.5928]
[1719202138102,7.9353,126.02,125.97,7.9381]
[1719202138695,9.52509692,126.03,125.98,7.9377]
[1719202140702,40.5526114,126.09,125.97,19.8456]
[1719202140898,40.5526114,126.09,126.01,7.9356]
[1719202140899,7.933,126.06,126.01,7.9356]
[1719202141203,7.9324,126.07,126.02,52.9346]
[1719202141404,7.9336,126.05,126.02,45.0]
[1719202141569,7.9369,126.0,125.96,15.5928]
[1719202141776,7.9374,125.99,125.96,15.5928]
[1719202141978,1.59029692,126.04,125.96,15.5928]
[1719202142196,7.9362,126.01,125.96,23.5315]
[1719202142398,7.9354,126.02,125.97,7.9383]
[1719202142995,7.9358,126.01,125.96,23.5316]
[1719202143204,7.9358,126.01,125.97,45.0]
[1719202143505,7.9367,126.0,125.97,45.0]
[1719202143707,1.59029692,126.04,125.92,14.0849]
[1719202143909,7.9385,125.97,125.92,14.085]
[1719202144205,7.9391,125.96,125.92,14.085]
[1719202144410,1.59029692,126.02,125.92,14.085]
[1719202144601,7.9387,125.97,125.92,14.085]
[1719202145718,7.9397,125.95,125.91,16.2608]
[1719202146096,7.9393,125.96,125.91,24.2029]
[1719202147395,7.9398,125.95,125.91,16.2608]
[1719202147717,7.9398,125.95,125.9,7.9426]
[1719202148215,7.9398,125.95,125.91,45.0]
[1719202148417,7.9389,125.97,125.92,7.9415]
[1719202148717,7.9393,125.96,125.93,45.0]
[1719202148889,7.94,125.95,125.91,45.0]
[1719202149222,7.94,125.95,125.91,52.9421]
[1719202150010,7.9392,125.96,125.91,52.9421]
[1719202150317,7.9397,125.95,125.91,52.9421]
[1719202150883,1.59029692,125.99,125.92,7.9413]
[1719202151134,1.59029692,125.99,125.93,45.0]
[1719202151394,1.59029692,125.99,125.91,52.4419]
[1719202151395,7.9393,125.96,125.91,52.4419]
[1719202152316,7.9398,125.95,125.91,52.4419]
[1719202152526,7.9391,125.96,125.92,7.9414]
[1719202152696,7.9391,125.96,125.91,52.4418]
[1719202152901,7.9398,125.95,125.91,52.4418]
[1719202153107,7.9398,125.95,125.91,44.5]
[1719202153309,7.9398,125.95,125.9,7.9424]
[1719202153494,1.59029692,125.99,125.92,7.9414]
[1719202153700,7.9389,125.97,125.93,45.0]
[1719202153918,7.939,125.96,125.93,45.0]
[1719202154226,7.94,125.95,125.93,45.0]
[1719202154390,7.94,125.95,125.9,7.9422]
[1719202154586,7.94,125.95,125.91,45.0]
[1719202155330,7.9403,125.94,125.91,45.0]
[1719202155497,7.9398,125.95,125.91,45.0]
[1719202155825,7.9391,125.96,125.92,7.9414]
[1719202156129,7.9385,125.97,125.93,45.0]
[1719202156796,7.9393,125.96,125.93,45.0]
[1719202157015,7.9399,125.95,125.92,45.0]
[1719202157215,7.9398,125.95,125.9,7.9426]
[1719202158611,7.9403,125.94,125.9,7.9425]
[1719202158813,7.9399,125.95,125.91,7.9421]
[1719202159017,7.9399,125.95,125.9,7.9425]
[1719202159206,7.9399,125.95,125.88,6.1006]
[1719202159207,7.9404,125.94,125.91,45.0]
[1719202159822,7.9397,125.95,125.91,45.0]
[1719202160531,7.9393,125.96,125.91,52.9421]
[1719202161626,7.9397,125.95,125.91,45.0]
[1719202162926,7.9406,125.94,125.91,45.0]
[1719202163114,7.9406,125.94,125.9,45.0]
[1719202163307,7.9402,125.94,125.9,7.9423]
[1719202163525,15.0005,126.07,125.94,6.6182]
[1719202163849,7.9355,126.02,125.98,7.9377]
[1719202164014,19.11,126.05,125.98,7.9377]
[1719202164015,7.9348,126.03,125.98,7.9377]
[1719202164339,7.9348,126.03,125.99,45.0]
[1719202164631,1.59029692,126.04,125.99,52.9367]
[1719202164632,7.9344,126.04,125.99,52.9367]
[1719202165131,7.9342,126.04,125.99,52.937]
[1719202165634,7.934,126.04,126.0,7.9362]
[1719202165828,7.934,126.04,126.01,45.0]
[1719202166926,7.81157135,126.08,126.01,45.0]
[1719202167112,1.59029692,126.08,126.01,45.0]
[1719202167318,7.9333,126.05,126.01,45.0]
[1719202167519,3.4258114,126.09,126.01,45.0]
[1719202167744,7.9322,126.07,126.02,7.9348]
[1719202168031,7.9325,126.07,126.03,45.0]
[1719202168234,7.9325,126.07,126.02,7.9348]
[1719202168409,7.9317,126.08,126.03,53.8057357]
[1719202168604,7.9317,126.08,126.03,8.8057357]
[1719202168805,7.9317,126.08,126.04,45.0]
[1719202169006,1.59029692,126.12,126.05,16.5721]
[1719202169224,1.59029692,126.12,126.06,45.0]
[1719202169547,19.11,126.14,126.06,45.0]
[1719202169842,7.9302,126.1,126.06,45.0]
[1719202170257,7.9302,126.1,126.06,52.9326]
[1719202170422,7.9298,126.11,126.06,52.9326]
[1719202170943,1.59029692,126.13,126.07,6.0389]
[1719202171158,7.9299,126.11,126.08,45.0]
[1719202172455,7.9299,126.11,126.03,19.8353]
[1719202172456,1.59029692,126.1,125.96,22.611]
[1719202172760,19.11,126.09,125.96,22.611]
[1719202173060,7.9337,126.05,126.0,7.9364]
[1719202173565,7.9337,126.05,126.0,7.9363]
[1719202174047,7.9342,126.04,125.99,7.937]
[1719202174828,7.9336,126.05,126.0,7.9363]
[1719202175260,7.934,126.04,125.99,7.9368]
[1719202175962,7.9335,126.05,126.0,52.9361]
[1719202176132,1.59029692,126.08,126.0,45.0]
[1719202176133,7.9341,126.04,126.0,45.0]
[1719202176759,7.9348,126.03,126.0,45.0]
[1719202176960,7.9342,126.04,125.99,52.9371]
[1719202177466,7.9342,126.04,126.0,7.9364]
[1719202177660,7.9342,126.04,126.01,45.0]
[1719202177830,7.9342,126.04,125.99,52.9368]
[1719202178026,19.11,126.07,125.99,45.0]
[1719202178232,1.59029692,126.06,125.99,45.0]
[1719202178543,7.9355,126.02,125.98,7.9377]
[1719202180062,19.11,126.05,125.96,22.611]
[1719202180269,1.59029692,126.04,125.97,45.0]
[1719202181965,7.9378,125.98,125.93,7.9406]
[1719202182177,7.9378,125.98,125.94,7.9402]
[1719202182539,7.9378,125.98,125.93,7.9406]
[1719202182745,7.9378,125.98,125.94,45.0]
[1719202182947,7.9388,125.97,125.92,29.3922]
[1719202183466,7.938,125.98,125.93,7.9408]
[1719202183844,7.9384,125.97,125.93,7.9408]
[1719202184171,7.9379,125.98,125.93,7.9408]
[1719202184340,7.9374,125.99,125.94,52.9402]
[1719202184665,1.59029692,126.02,125.94,45.0]
[1719202184870,25.3044,126.05,125.95,7.9394]
[1719202184871,7.9368,126.0,125.95,7.9394]
[1719202185036,1.59029692,126.04,125.96,45.0]
[1719202185235,7.9371,125.99,125.96,45.0]
[1719202185474,7.9371,125.99,125.95,45.0]
[1719202185961,1.59029692,126.04,125.95,45.0]
[1719202186139,7.938,125.98,125.94,45.0]
[1719202188860,7.9386,125.97,125.94,45.0]
[1719202189253,7.938,125.98,125.94,45.0]
[1719202189858,7.938,125.98,125.94,52.9402]
[1719202190073,7.9369,126.0,125.95,7.9396]
[1719202190263,7.9369,126.0,125.96,45.0]
[1719202190565,7.9367,126.0,125.96,45.0]
[1719202191865,7.9373,125.99,125.96,45.0]
[1719202192575,7.9368,126.0,125.96,45.0]
[1719202193972,7.9372,125.99,125.96,45.0]
[1719202194156,7.9378,125.98,125.95,45.0]
[1719202194546,7.9373,125.99,125.95,45.0]
[1719202194743,7.938,125.98,125.95,45.0]
[1719202194978,7.9374,125.99,125.94,53.11]
[1719202195179,7.9377,125.98,125.94,53.11]
[1719202195475,7.9374,125.99,125.94,53.11]
[1719202196066,7.9374,125.99,125.92,69.2608]
[1719202196067,7.9395,125.96,125.92,21.4508]
[1719202196252,7.9386,125.97,125.92,29.3919]
[1719202197345,7.9395,125.96,125.93,45.0]
[1719202197583,7.9395,125.96,125.92,29.3923]
[1719202197954,14.7391,125.99,125.9,7.9424]
[1719202198164,7.9407,125.94,125.89,7.9428]
[1719202198757,7.9407,125.94,125.9,7.9426]
[1719202199267,7.9399,125.95,125.9,7.9426]
[1719202199746,7.9403,125.94,125.9,7.9426]